Cogmind - Beta 13 @@@ ROGUE MODE // 2024.07.07 @ 14:50:27 Player: RealTimeWarfare Result: Destroyed by VM-PZV(R) with Subdweller Shrapnel Launcher Performance ------------- Evolutions (0) 0 Regions Visited (2) 400 Robots Destroyed (19) 95 Value Destroyed (612) 612 Prototype IDs (0) 0 Alien Tech Used (0) 0 Bonus (-37) -37 TOTAL SCORE: 1070 Bonus ------- Friendly Fire -37 Cogmind --------- Core Integrity 0/250 Matter 300/300 Energy 100/100 System Corruption 1% Temperature Cool (0) Movement Rolling (110) Location -10/Subcaves Parts ------- > --- POWER (1) -------- (None) > --- PROPULSION (2) --- Subdweller Monowheel > --- UTILITY (2) ------ Large Storage Unit Signal Interpreter > --- WEAPON (2) ------- (None) > --- INVENTORY (15) --- Scrap Shield Scrap Shield Fragment (46) Peak State ------------ > --- POWER ------------ Light Nuclear Core > --- PROPULSION ------- Light Treads Light Treads > --- UTILITY ---------- Heat Sink Signal Interpreter > --- WEAPON ----------- Medium Laser Beam Cannon > --- INVENTORY -------- Light Ion Engine Heat Sink Large Storage Unit Large Matter Pod Grenade Launcher [Rating: 9] Favorites ----------- Power Light Ion Engine Engine Light Ion Engine Power Core Light Nuclear Core Propulsion Light Treads Treads Light Treads Wheel Subdweller Monowheel Utility Signal Interpreter Device Heat Sink Storage Large Matter Pod Processor Signal Interpreter Weapon Medium Laser Energy Gun Medium Laser Energy Cannon Beam Cannon Launcher Grenade Launcher Build | -11 -10 -10 ------- Run | Yrd Mat Sub Slots Evolved . | . . . Power . | . . . Propulsion . | . . . Utility . | . . . Weapon . | . . . Parts Attached 17 | 5 7 5 Power 3 | 1 2 . Engine 2 | 1 1 . Core 1 | . 1 . Reactor . | . . . Propulsion 3 | 2 . 1 Treads 2 | 2 . . Leg . | . . . Wheel 1 | . . 1 Hover . | . . . Flight . | . . . Utility 6 | . 4 2 Device 2 | . 1 1 Storage 2 | . 1 1 Processor 2 | . 2 . Hackware . | . . . Protection . | . . . Artifact . | . . . Weapon 5 | 2 1 2 Energy Gun 3 | 2 . 1 Energy Cannon 1 | . 1 . Ballistic Gun . | . . . Ballistic Cannon . | . . . Launcher 1 | . . 1 Special Weapon . | . . . Impact Weapon . | . . . Slashing Weapon . | . . . Piercing Weapon . | . . . Special Melee Weapon . | . . . Unidentified Prototypes . | . . . Parts Lost 11 | . 3 8 Power 2 | . 1 1 Propulsion 2 | . 1 1 Utility 3 | . 1 2 Weapon 4 | . . 4 Highest Loss Streak 5 | . 1 5 To Critical Strikes 1 | . . 1 Average Slot Usage (%) 95 | . 98 71 Engine 11 | . 12 7 Core 1 | . 1 . Treads 24 | . 26 6 Device 10 | . 9 11 Storage 3 | . 3 1 Processor 13 | . 13 14 Energy Gun 14 | . 14 12 Energy Cannon 13 | . 13 6 Naked Turns . | . . . Heaviest Build 20 | 7 11 20 Greatest Support 40 | 40 40 20 Greatest Overweight (x) . | . . . Average Overweight (x) . | . . . Largest Inventory Capacity 15 | 5 5 15 Average Capacity 5 | 5 5 5 Most Carried 5 | 2 5 5 Average Carried 3 | . 4 4 Final Capacity 15 | 5 5 15 Final Carried 4 | . 4 3 Class Distribution -------------------- 97% | Mutant Dominant Class ---------------- Mutant | -10/Materials Mutant | -10/Subcaves Resources | -11 -10 -10 ----------- Run | Yrd Mat Sub Matter Collected 660 | 222 388 50 Remotely . | . . . Salvage Created 663 | . 487 176 Parts 45 | . 28 17 Haulers Intercepted . | . . . Recyclers Shooed . | . . . Parts Field Recycled . | . . . Retrieved Matter . | . . . Parts Self-Destructed . | . . . Prevented . | . . . Kills | -11 -10 -10 ------- Run | Yrd Mat Sub Combat Hostiles Destroyed 18 | . 13 5 Guns 4 | . 4 . Cannons 9 | . 9 . AOE 5 | . . 5 Classes Destroyed 4 | . 3 1 Watcher 1 | . 1 . Swarmer 3 | . 3 . Grunt 10 | . 10 . Subdweller 5 | . . 5 Best Kill Streak 4 | . 3 4 Combat Bots Only 4 | . 3 4 Max Kills in Single Turn 4 | . 1 4 Gunslinging . | . . . Exploded 4 | . . 4 Melee . | . . . Uniques/NPCs Destroyed . | . . . Combat | -11 -10 -10 -------- Run | Yrd Mat Sub Hostile Shots Fired 83 | . 61 22 Missed 24 | . 17 7 Damage Taken 1108 | . 596 512 Core 290 | . 68 222 Absorbed by Shields . | . . . Core Remaining (%) 100 | 100 . . Volleys Fired 41 | . 35 6 Largest 2 | . 2 2 Hottest 110 | . 110 110 Shots Fired 78 | . 70 8 Gun 39 | . 35 4 Cannon 36 | . 35 1 Launcher 3 | . . 3 Special . | . . . Kinetic . | . . . Thermal 75 | . 70 5 Explosive 3 | . . 3 Electromagnetic . | . . . Robot Hit Streak 8 | . 8 7 Robot Miss Streak 5 | . 5 1 Penetration Max . | . . . Secondary Targets . | . . . Shots Hit Robots 51 | . 44 7 Core Hits 41 | . 23 18 Critical Kills . | . . . Critical Parts Destroyed . | . . . Critical Strikes 1 | . 1 . Burn 1 | . 1 . Melee Attacks . | . . . Impact . | . . . Slashing . | . . . Piercing . | . . . Sneak Attacks . | . . . Combat Hostiles . | . . . Follow-up Attacks . | . . . Damage Inflicted 1132 | . 688 444 Guns 309 | . 272 37 Cannons 416 | . 416 . Explosions 380 | . . 380 Melee . | . . . Ramming 27 | . . 27 Kinetic . | . . . Thermal 725 | . 688 37 Explosive 380 | . . 380 Electromagnetic . | . . . Impact . | . . . Slashing . | . . . Piercing . | . . . Highest Corruption 1 | . 1 1 Average Corruption 1 | . 1 1 Corruption Purged . | . . . Corruption Blocked . | . . . Effects 4 | . 4 . Matter Fused 1 | . 1 . Heat Flow Errors 1 | . 1 . Energy Discharges 1 | . 1 . Alerts 1 | . 1 . Overload Shots . | . . . Overflow Damage 9 | . . 9 Projectiles . | . . . Explosions 9 | . . 9 Melee . | . . . Knockbacks . | . . . Impact . | . . . Kinetic . | . . . Secondary . | . . . Self-Inflicted Damage 122 | . . 122 Shots 3 | . . 3 Rammed 10 | . . 10 Targets Rammed 10 | . . 10 Kicked . | . . . Crushed . | . . . Highest Temperature 402 | . 402 . Average Temperature 109 | . 109 . Received Heat Transfer 276 | . 222 54 Effects 1 | . 1 . Energy Bleed 1 | . 1 . Siege Activations . | . . . Robots Corrupted . | . . . Combat Hostiles . | . . . Parts Fried . | . . . Impact Corruptions . | . . . Robots Melted . | . . . Combat Hostiles . | . . . Parts Melted 2 | . 2 . Heat Transferred 1826 | . 1776 50 Parts Sabotaged . | . . . Parts Stolen . | . . . Parts Stripped . | . . . Power Chain Reactions . | . . . Alert | -11 -10 -10 ------- Run | Yrd Mat Sub Peak Influence 110 | . 110 . Initial . | . . . Average 32 | . 45 . Maximum Alert Level . | . . . Low Security (%) 100 | 100 100 . Level 1 . | . . . Level 2 . | . . . Level 3 . | . . . Level 4 . | . . . Level 5 . | . . . High Security . | . . . Max Security . | . . . Squads Dispatched 2 | . 2 . Investigation 2 | . 2 . Extermination . | . . . Reinforcement . | . . . Assault . | . . . Garrison . | . . . Intercept . | . . . Searches Triggered . | . . . Construction Impeded . | . . . Haulers Reinforced . | . . . Active Scanning Responses . | . . . Cargo Convoy Interrupts . | . . . Stealth | -11 -10 -10 --------- Run | Yrd Mat Sub Distress Signals 1 | . 1 . Communications Jammed . | . . . Distress Signals . | . . . Times Spotted 28 | . 18 10 Peak Tracking Total 4 | . 3 4 Tactical Retreats . | . . . Traps | -11 -10 -10 ------- Run | Yrd Mat Sub Traps Triggered 2 | . 2 . Indirectly . | . . . Trap Hack Attempts . | . . . Triggered . | . . . Disarmed . | . . . Reprogrammed . | . . . Reused . | . . . Traps Extracted . | . . . Installed . | . . . Triggered . | . . . Machines | -11 -10 -10 ---------- Run | Yrd Mat Sub Machines Disabled . | . . . Max in Single Turn . | . . . Machines Repaired . | . . . Machines Dismantled . | . . . Machines Sabotaged . | . . . Overloaded Fab Kills . | . . . Hacking | -11 -10 -10 --------- Run | Yrd Mat Sub Machines Accessed 5 | . 5 . Terminals 5 | . 5 . Fabricators . | . . . Repair Stations . | . . . Recycling Units . | . . . Scanalyzers . | . . . Garrison Access . | . . . Total Hacks 15 | . 15 . Successful 8 | . 8 . Failed 7 | . 7 . Catastrophic . | . . . Database Lockouts . | . . . Manual 5 | . 5 . Terminals 15 | . 15 . Fabricators . | . . . Repair Stations . | . . . Recycling Units . | . . . Scanalyzers . | . . . Garrison Access . | . . . Terminal Hacks 8 | . 8 . Record 5 | . 5 . Alert Level 1 | . 1 . Zone Layout 2 | . 2 . Fabricator Hacks . | . . . Repair Station Hacks . | . . . Recycling Unit Hacks . | . . . Scanalyzer . | . . . Garrison Access Hacks . | . . . Unauthorized Hacks . | . . . Terminals . | . . . Fabricators . | . . . Repair Stations . | . . . Recycling Units . | . . . Scanalyzers . | . . . Garrison Access . | . . . Data Cores Recovered . | . . . Used . | . . . Hacking Detections 5 | . 5 . Full Trace Events 5 | . 5 . Feedback Events . | . . . Feedback Blocked . | . . . Robot Schematics Acquired . | . . . Robots Built . | . . . Authchips . | . . . Time . | . . . Total Robot Build Rating . | . . . Part Schematics Acquired . | . . . Parts Built . | . . . Authchips . | . . . Time . | . . . Total Part Build Rating . | . . . Parts Repaired . | . . . Time . | . . . Parts Recycled . | . . . Recycled Matter . | . . . Retrieved Matter . | . . . Retrieved Components . | . . . Parts Scanalyzed . | . . . Part Schematics Acquired . | . . . Parts Damaged . | . . . Bothacking | -11 -10 -10 ------------ Run | Yrd Mat Sub Used RIF Installer . | . . . Robots Hacked . | . . . Non-combat . | . . . Combat . | . . . Robot Hacks Applied . | . . . Relay Couplers Released . | . . . Fabnet Peak Effective % . | . . . Robots Rewired . | . . . Allies Hacked . | . . . Hacks Repelled . | . . . Allies | -11 -10 -10 -------- Run | Yrd Mat Sub Total Allies . | . . . Largest Group . | . . . Highest-Rated Group . | . . . Highest-Rated Ally . | . . . Total Orders . | . . . Ally Attacks . | . . . Total Damage . | . . . Kills . | . . . Allies Corrupted . | . . . Allies Melted . | . . . Intel | -11 -10 -10 ------- Run | Yrd Mat Sub Robot Analysis Total . | . . . Derelict Logs Recovered . | . . . Drone Launches . | . . . Drone Recoveries . | . . . Exploration | -11 -10 -10 ------------- Run | Yrd Mat Sub Turns Passed 2399 | 648 1579 172 Spaces Moved 1194 | 230 859 105 Core 14 | 7 . 7 Treads 1128 | 223 859 46 Legs . | . . . Wheels 52 | . . 52 Hover . | . . . Flight . | . . . Fastest Speed 50 | 50 160 50 Average Speed 156 | 156 160 127 Slowest Speed 160 | 160 160 160 Overloaded Moves . | . . . Propulsion Burnouts . | . . . Robots Hopped . | . . . Cave-ins Triggered . | . . . Exploration Rate (%) 33 | 25 68 8 Regions Visited 2 Branch Regions 1 Pre-discovered Areas . | . . . Known Exits Taken 1 | . 1 . Unknown Exits Taken 1 | 1 . . Scrap Searched . | . . . Spaces Dug . | . . . Terrain Destroyed 22 | . . 22 Melee . | . . . Projectile . | . . . AOE 22 | . . 22 Terrain Rammed . | . . . Walls Destroyed . | . . . Machines Disabled . | . . . Actions | -11 -10 -10 --------- Run | Yrd Mat Sub Total 1647 | 518 994 135 Wait 361 | 279 80 2 Move 1192 | 229 858 105 Hop . | . . . Pick Up 21 | 5 11 5 Fast Attach . | . . . Attach 14 | 5 4 5 Detach . | . . . Swap 3 | . 3 . Drop 5 | . 3 2 Fire 41 | . 35 6 Melee . | . . . Ram 10 | . . 10 Kick . | . . . Crush . | . . . Escape Stasis . | . . . Rewire . | . . . Trap . | . . . Miscellaneous . | . . . Route ------- -11/Scrapyard -10/Materials (discovered 4 exits: *Mat / *Min x2 / *Sub) -10/Subcaves (discovered 1 exit: *Mat) History --------- Turn | Location | Event 2 | -11/Scrapyard | Discovered new exit (range 16) 649 | -11/Scrapyard | Entered Materials 650 | -10/Materials | Build established: Mutant 796 | -10/Materials | Discovered new exit (range 18) 1359 | -10/Materials | Discovered new exit (range 15) 1433 | -10/Materials | Discovered new exit (range 3) 1435 | -10/Materials | Identified exit to Subcaves 1473 | -10/Materials | Identified exit to Mines 1887 | -10/Materials | Discovered new exit (range 16) 1909 | -10/Materials | Identified exit to Materials 2228 | -10/Materials | Entered Subcaves 2253 | -10/Subcaves | Shifting Twisted Machinery released Battle Rifle 2259 | -10/Subcaves | Discovered new exit (range 9) 2272 | -10/Subcaves | Identified exit to Materials 2287 | -10/Subcaves | Shifting Twisted Machinery released Sub. Machine Gun 2314 | -10/Subcaves | Core integrity fell below 50% 2343 | -10/Subcaves | Lost 5 parts (1p1n1u2w) 2378 | -10/Subcaves | Ambushed by swarm of Subdwellers 2381 | -10/Subcaves | Ambushed by Subdwellers from Twisted Machinery 2382 | -10/Subcaves | Ambushed by Subdwellers from Twisted Machinery 2382 | -10/Subcaves | Ambushed by Subdwellers from Twisted Machinery 2387 | -10/Subcaves | Core integrity fell below 20% 2400 | -10/Subcaves | Destroyed by VM-PZV(R) with Subdweller Shrapnel Launcher Last Messages --------------- CF-BVW(u) builds Twisted Machinery. Slammed into VG-SM8(R). HV Slug penetrates Twisted Machinery. HV Slug penetrates AN-V8Q(R). AN-V8Q(R) suffers critical hit (Destroy). AN-V8Q(R) destroyed. CF-BVW(u) builds Twisted Machinery. Slammed into VG-SM8(R). Slammed into VM-PZV(R). CF-BVW(u) builds Twisted Machinery. HV Slug penetrates Twisted Machinery. HV Slug penetrates Wall. VG-SM8(R) destroyed. Slammed into VM-PZV(R). Destabilizing: System interference. Signal Interpreter temporarily disabled. Subatomizers dissect the Sub. Power Source. Slammed into VM-PZV(R). HV Slug penetrates Wall. Slammed into VM-PZV(R). Map ----- +----------------------------------------------------+ | ????????????????????????????## ??????????????? | | ???????????????????????????## ##????????????? | | ??????????????????????????## ##???????????? | | ??????????????????????????? ##??????????? | | ??????????????????????????? #??????????? | | ?????????????????????????? #??????????# | | ?????????????????????????? ##????????# | | ??????????????????????????? ####???## | | ????????????????????????????# ##??# | | ????????????????????????????# #?## | | ????????????????????????????# #?? | | ?????????????????????## ##### #?? # | | ?????????????????? #?# " #?# %### # | | ??????????????????? ??" " ### %%## # | | ???????????????????? " ????# ## | | ????????????????????# ????#"" ## | | ????????????????????# #???#"" % # | | ????????????????????# ""???### | | ?????????????????????#"""?????#"" ### & " | | ???????????????????####"&###### % ##?### [% % | | ??????????????????? ""&&[&#"! #????## & | | ????????????????????????#&%%u"! #??#### # " | | ????????????????????????#"&%""&! #??# ## # | | ???????????????????????##%%&=!%! #??# ### # | | ???????????????????????#%!%#!![ ##??# #### | | ???????????????????????#R@=########???# ## | | ???????????????????????##*;#??????????#### | | ????????????????????????#;;??????????????# < | | ?????????????????????????????????????????# "# # | | ???????????????????????????????????????### " | | ??????????????????????????????????????## # # ## | | ??????????????????????????????????????# ##?# | | ??????????????????????????????????????# " #???# | | ??????????????????????????????????????# [#####? | | ??????????????????????????????????????## #? | | ???????????????????????????????????????# ## ##? | | ???????????????????????????????????????##?### ##?? | | ??????????????????????????????????????????### ##?? | | ?????????????????????????????????????????## #?? | | ????????????????????????????????????????## #?? | | ????????????????????????????????????????# #?? | | ????????????????????????????????????????# ##?? | | ????????????????????????????????????????## ####? | | ????????????????????????????????????????## % # # | | ????????????????????????????????????????# # | | ????????????????????????????????????????# ! # # | | ????????????????????????????????????????# ###? | | ????????????????????????????????????????## ??? | | ?????????????????????????????????????????## ?? | | ??????????????????????????????????????????## % ? | +----------------------------------------------------+ Best States ------------- Heat Dissipation 35 Energy Generation 14 Energy Capacity 160 Matter Stores 440 Matter Capacity 450 Sight Range 16 Terrain Scan Density 10 Evasion (%) 50 Targeting Accuracy 5 Recoil Reduction 2 Item Schematics ----------------- None Robot Schematics ------------------ None Fabricated ------------ Nothing Alien Tech Used ----------------- None Achievements -------------- Let's See Who's Tougher Storm Trooper Challenges ------------ None Game ------ Seed FlyingBottomlessNanovents Manual? 0 Play Time 01:03:35 Cumulative 2.2 hours Start 2024.07.06 @ 12:53:16 End 2024.07.07 @ 14:50:27 Sessions 3 Manual Loads 0 Difficulty Rogue Special Mode None Game No. 2 Rogue 2 Adventurer 0 Explorer 0 Win Type - Total 0 Types 0/0/0/0/0/0/0/0/0 Lore% 1 Gallery% 2 Achievement% 3 Wizard Run 0 Options --------- Layout 1 ASCII 0 Keyboard 0 Movement Numpad Keybinds 0 Fullscreen 1 Font 24/Smallcaps Map View 50x35 Zoom Use 0% Tactical HUD 0 Map Filters NONE Filters NONE Steam 1 RUN: 1918290a-3ffe-4861-9cd5-8a1b462cafc3